Workbook

Sheet Лист1
F1: 28 | I1: 26 | L1: 46
E2: OANDA | H2: SaxoBank | K2: Dukascopy
B3: Сред. Б | C3: Пред | E3: buy | F3: sell | H3: buy | I3: sell | K3: buy | L3: sell | N3: в данный момент | R3: сравнение с пред. | Z3: AUD/USD | AA3: 10
A4: AUD/USD | B4: 0.5666666667 | C4: -23.28518519 | E4: 57 | F4: =(100)-E4 -> 43 | G4: =E4-F4 -> 14 | H4: 43.05 | I4: =(100)-H4 -> 56.95 | J4: =H4-I4 -> -13.9 | N4: =B4 -> 0.5666666667 | R4: =B4-C4 -> 23.85185185 | Z4: EUR/USD | AA4: 28
A5: EUR/USD | B5: 1.1568 | C5: -9.4832 | E5: 75 | F5: 25 | G5: 50 | H5: 50 | I5: 50 | J5: 0 | K5: 36.04 | L5: =(100)-K5 -> 63.96 | M5: =K5-L5 -> -27.92 | N5: 1.1568 | R5: 10.64 | Z5: GBP/USD | AA5: 17
A6: GBP/USD | B6: -18.7836 | C6: -14.8636 | E6: 46 | F6: 54 | G6: -8 | H6: 40 | I6: 60 | J6: -20 | K6: 37.67 | L6: =(100)-K6 -> 62.33 | M6: =K6-L6 -> -24.66 | N6: -18.7836 | R6: -3.92 | Z6: USD/JPY | AA6: 17
A7: USD/JPY | B7: 17.7956 | C7: 22.2756 | E7: 46 | F7: 54 | G7: -8 | H7: 40 | I7: 60 | J7: -20 | K7: 77.43 | L7: 22.57 | M7: 54.86 | N7: 17.7956 | R7: -4.48 | Z7: USD/CHF | AA7: 8
A8: USD/CHF | B8: 31.1576 | C8: 37.2376 | E8: 45 | F8: 55 | G8: -10 | H8: 52 | I8: 48 | J8: 4 | K8: 85.78 | L8: 14.22 | M8: 71.56 | N8: 31.1576 | R8: -6.08 | Z8: EUR/GBP | AA8: 5
A9: EUR/GBP | B9: -25.18518519 | C9: -1.333333333 | E9: 35 | F9: 65 | G9: -30 | H9: 40 | I9: 60 | J9: -20 | N9: -25.18518519 | R9: -23.85185185 | Z9: EUR/CHF | AA9: 5
A10: EUR/CHF | B10: 20.0837037 | C10: 64.6762963 | E10: 35 | F10: 65 | G10: -30 | H10: 87.01 | I10: 12.99 | J10: 74.02 | N10: 20.0837037 | R10: -44.59259259 | Z10: EUR/JPY | AA10: 6
A11: EUR/JPY | B11: -15.8172 | C11: -9.0972 | E11: 35 | F11: 65 | G11: -30 | H11: 40 | I11: 60 | J11: -20 | K11: 47.59 | L11: =(100)-K11 -> 52.41 | M11: -4.82 | N11: -15.8172 | R11: -6.72 | Z11: GBP/JPY | AA11: 5
A12: GBP/JPY | B12: 7.704 | C12: 7.144 | E12: 76 | F12: 24 | G12: 52 | H12: 40 | I12: 60 | J12: -20 | K12: 48.2 | L12: =(100)-K12 -> 51.8 | M12: -3.6 | N12: 7.704 | R12: 0.56 | Z12: XAU/USD | AA12: 5
A13: XAU/USD | B13: 45.9562963 | C13: 18.99333333 | E13: 78 | F13: 22 | G13: 56 | H13: 67.57 | I13: 32.43 | J13: 35.14 | N13: 45.9562963 | R13: 26.96296296
E14: заполнять последним!
B16: Сред. | C16: Пред | E16: AUD/USD | F16: EUR/USD | G16: GBP/USD | H16: USD/JPY | I16: USD/CHF | J16: EUR/GBP | K16: EUR/CHF | L16: EUR/JPY | M16: GBP/JPY | N16: XAU/USD | O16: в данный момент | S16: сравнение с предыд.
A17: AUD | B17: 0.5666666667 | C17: 0.5666666667 | D17: =(E17*9)/9 -> 0.5666666667 | E17: =B4 -> 0.5666666667 | O17: =B17/2 -> 0.2833333333 | S17: =B17-C17 -> 0
A18: EUR | B18: -2.150804938 | C18: 1.799812346 | D18: =(F18*26+J18*5+K18*5+L18*6)/42 -> -2.150804938 | F18: =B5 -> 1.1568 | J18: =B9 -> -25.18518519 | K18: =B10 -> 20.0837037 | L18: =B11 -> -15.8172 | O18: -1.075402469 | S18: -3.950617284
A19: GBP | B19: -5.234295157 | C19: -3.43782792 | D19: =(G19*16+J19*5+M19*5)/26 -> -5.234295157 | G19: =B6 -> -18.7836 | J19: =B9*-1 -> 25.18518519 | M19: =B12 -> 7.704 | O19: -2.617147578 | S19: -1.796467236
A20: JPY | B20: -8.457274074 | C20: -8.125422222 | D20: =(H20*16+L20*6+M20*5)/27 -> -8.457274074 | H20: =B7*-1 -> -17.7956 | L20: =B11*-1 -> 15.8172 | M20: =B12*-1 -> -7.704 | O20: -4.228637037 | S20: -0.3318518519
A21: CHF | B21: -26.54347654 | C21: -36.04964938 | D21: =(I21*7+K21*5)/12 -> -26.54347654 | I21: =B8*-1 -> -31.1576 | K21: =B10*-1 -> -20.0837037 | O21: -13.27173827 | S21: 9.50617284
A22: XAU | B22: 45.9562963 | C22: 18.99333333 | D22: =(N22*5)/5 -> 45.9562963 | N22: =B13 -> 45.9562963 | O22: 22.97814815 | S22: 26.96296296
A23: USD | B23: 6.815343272 | C23: 7.160847257 | D23: =(E23*9+F23*26+G23*16+H23*16+I23*7+N23*5)/79 -> 6.815343272 | E23: =B4*-1 -> -0.5666666667 | F23: =B5*-1 -> -1.1568 | G23: =B6*-1 -> 18.7836 | H23: =B7 -> 17.7956 | I23: =B8 -> 31.1576 | N23: =B13*-1 -> -45.9562963 | O23: 3.407671636 | S23: -0.345503985
AE35: long% | AF35: short%
AD36: AUD/USD | AE36: =(E4*28+H4*26)/54 -> 50.28333333 | AF36: =(100)-AE36 -> 49.71666667 | AG36: =AE36-AF36 -> 0.5666666667
AD37: EUR/USD | AE37: =(E5*28+H5*26+K5*46)/100 -> 50.5784 | AF37: 49.4216 | AG37: 1.1568
AD38: GBP/USD | AE38: =(E6*28+H6*26+K6*46)/100 -> 40.6082 | AF38: 59.3918 | AG38: -18.7836
AD39: USD/JPY | AE39: =(E7*28+H7*26+K7*46)/100 -> 58.8978 | AF39: 41.1022 | AG39: 17.7956
AD40: USD/CHF | AE40: =(E8*28+H8*26+K8*46)/100 -> 65.5788 | AF40: 34.4212 | AG40: 31.1576
X41: Dukascopy | Y41: 250 | AD41: EUR/GBP | AE41: =(E9*28+H9*26)/54 -> 37.40740741 | AF41: 62.59259259 | AG41: -25.18518519
X42: OANDA | Y42: 150 | AD42: EUR/CHF | AE42: =(E10*28+H10*26)/54 -> 60.04185185 | AF42: 39.95814815 | AG42: 20.0837037
X43: SaxoBank | Y43: 140 | AD43: EUR/JPY | AE43: =(E11*28+H11*26+K11*46)/100 -> 42.0914 | AF43: 57.9086 | AG43: -15.8172
X44: всего | Y44: =(Y41+Y42+Y43) -> 540 | AD44: GBP/JPY | AE44: =(E12*28+H12*26+K12*46)/100 -> 53.852 | AF44: 46.148 | AG44: 7.704
AD45: XAU/USD | AE45: =(E13*28+H13*26)/54 -> 72.97814815 | AF45: 27.02185185 | AG45: 45.9562963

Sheet Лист2
E4: 49000 | G4: введите зн. Депо
E5: риск | F5: стоп
D6: в рублях | E6: =(E4*E8)/100 -> 490 | F6: =(F7*0.7)*F8 -> 420 | G6: рискуемая сумма | I6: =F7*0.7 -> 420
D7: в пунктах | E7: =(E6/70)*100 -> 700 | F7: 600 | G7: введите зн. Стопа
C8: риск в процентах % | E8: 1 | F8: =ROUNDDOWN(I8,0) -> 1 | G8: рекоменд. Лот | I8: =E6/I6 -> 1.166666667

Sheet Лист3
